[Event "V Copa Marcel Duchamp 2022"]
[Site "Montevideo"]
[Date "2022.02.15"]
[Round "5.23"]
[White "Meza, Anahi"]
[Black "Lavandeira, Juan Facundo"]
[Result "1-0"]
[ECO "E68"]
[WhiteElo "1996"]
[BlackElo "1520"]
[Annotator "NA"]
[PlyCount "65"]
[EventDate "2022.02.12"]
[EventCountry "URU"]
[SourceTitle "playchess.com"]
[Source "ChessBase"]
[SourceQuality "1"]
[TimeControl "5400+30"]

1. d4 {[%emt 0:00:03]} d6 {[%emt 0:00:38]} 2. Nf3 {[%emt 0:01:09]} Nf6 {[%emt 0:00:09]} 3. c4 {[%emt 0:00:05]} Nbd7 {[%emt 0:00:43]} 4. g3 {[%emt 0:03:30]} g6 {[%emt 0:00:46]} 5. Bg2 {[%emt 0:00:05]} Bg7 6. O-O O-O {[%emt 0:00:39]} 7. Nc3 {[%emt 0:00:31]} e5 {[%emt 0:01:52]} 8. e4 {[%emt 0:00:26]} a5 {[%emt 0:04:29]} 9. h3 {[%emt 0:03:00]} c6 {[%emt 0:01:00]} 10. Be3 {[%emt 0:01:29]} h6 {[%emt 0:01:23]} 11. Qd2 {[%emt 0:05:53]} Kh7 {[%emt 0:00:08]} 12. Rad1 {[%emt 0:01:11]} Qe7 {[%emt 0:16:39]} 13. Qc2 {[%emt 0:04:34]} Ne8 {[%emt 0:08:30]} 14. dxe5 {[%emt 0:04:37]} dxe5 {[%emt 0:01:14]} 15. Na4 {[%emt 0:01:07]} Nc7 {[%emt 0:06:36]} 16. Rd2 {[%emt 0:18:08]} Na6 {[%emt 0:03:07]} 17. c5 {[%emt 0:05:21]} Nb4 {[%emt 0:06:05]} 18. Qb1 {[%emt 0:00:27]} Na6 {[%emt 0:07:51]} 19. Rc1 {[%emt 0:01:33]} Rd8 {[%emt 0:00:19]} 20. Bf1 {[%emt 0:06:16]} Nc7 {[%emt 0:02:17]} 21. Rcd1 {[%emt 0:01:08]} Ne6 {[%emt 0:06:48]} 22. Qc2 {[%emt 0:01:45]} Ndf8 {[%emt 0:08:56]} 23. Rxd8 Nxd8 {[%emt 0:00:02]} 24. Nb6 {[%emt 0:08:47]} Rb8 {[%emt 0:00:06]} 25. Qa4 {[%emt 0:02:37]} Nde6 {[%emt 0:09:02]} 26. Qxa5 {[%emt 0:00:36]} Qc7 {[%emt 0:00:20]} 27. Qa7 {[%emt 0:04:50]} f5 {[%emt 0:00:35]} 28. exf5 {[%emt 0:01:16]} gxf5 {[%emt 0:00:02]} 29. Na8 {[%emt 0:04:12]} Rxa8 {[%emt 0:00:33]} 30. Qxa8 {[%emt 0:00:01]} f4 {[%emt 0:00:16]} 31. gxf4 {[%emt 0:00:20]} exf4 {[%emt 0:00:02]} 32. Bd2 {[%emt 0:01:11]} Bxb2 {[%emt 0:00:22]} 33. Qa4 {[%emt 0:02:01]} 1-0

[Event "V Copa Marcel Duchamp 2022"]
[Site "Montevideo"]
[Date "2022.02.15"]
[Round "5.25"]
[White "Torales, Agustin"]
[Black "Castro, Cesar"]
[Result "1/2-1/2"]
[ECO "B90"]
[WhiteElo "1682"]
[BlackElo "2097"]
[Annotator "ChessBase"]
[PlyCount "41"]
[EventDate "2022.02.12"]
[EventCountry "URU"]
[SourceTitle "playchess.com"]
[Source "ChessBase"]
[SourceQuality "1"]
[TimeControl "5400+30"]

1. e4 {[%emt 0:00:18]} c5 {[%emt 0:00:09]} 2. Nf3 {[%emt 0:00:12]} d6 {[%emt 0:00:08]} 3. d4 {[%emt 0:00:04]} cxd4 4. Nxd4 {[%emt 0:00:04]} Nf6 {[%emt 0:00:21]} 5. Nc3 {[%emt 0:00:06]} a6 {[%emt 0:00:10]} 6. Bc4 {[%emt 0:00:09]} e6 {[%emt 0:00:18]} 7. Bb3 {[%emt 0:00:19]} Nbd7 {[%emt 0:00:12]} 8. O-O {[%emt 0:00:48]} Nc5 {[%emt 0:00:09]} 9. Qe2 {[%emt 0:01:43]} Be7 10. f4 {[%emt 0:01:26]} b5 {[%emt 0:01:46]} 11. Nc6 {[%emt 0:04:44]} Qb6 {[%emt 0:00:30]} 12. Nxe7 {[%emt 0:00:10]} Nxb3+ {[%emt 0:02:57]} 13. Be3 {[%emt 0:00:04]} Nd4 {[%emt 0:05:02]} 14. Qf2 {[%emt 0:00:10]} Kxe7 {[%emt 0:02:12]} 15. Bxd4 {[%emt 0:00:09]} Qc6 {[%emt 0:03:19]} 16. e5 {[%emt 0:00:11]} Ne8 {[%emt 0:01:02]} 17. f5 {[%emt 0:16:54]} dxe5 {[%emt 0:10:45]} 18. Bc5+ {[%emt 0:02:15]} Kd8 {[%emt 0:02:26]} 19. Bb6+ {[%emt 0:05:12]} Ke7 {[%emt 0:00:39]} 20. Bc5+ {[%emt 0:04:26]} Kd8 {[%emt 0:00:23]} 21. Bb6+ {[%emt 0:00:08]} 1/2-1/2

[Event "V Copa Marcel Duchamp 2022"]
[Site "Montevideo"]
[Date "2022.02.15"]
[Round "5.26"]
[White "Martinez Tagliafico, Sergio"]
[Black "Mateus, Martha"]
[Result "0-1"]
[ECO "D34"]
[WhiteElo "1780"]
[BlackElo "2019"]
[Annotator "NA"]
[PlyCount "52"]
[EventDate "2022.02.12"]
[EventCountry "URU"]
[SourceTitle "playchess.com"]
[Source "ChessBase"]
[SourceQuality "1"]
[TimeControl "5400+30"]

1. d4 {[%emt 0:02:11]} d5 {[%emt 0:00:17]} 2. c4 {[%emt 0:00:16]} e6 {[%emt 0:00:04]} 3. Nc3 {[%emt 0:00:15]} c5 {[%emt 0:00:08]} 4. cxd5 exd5 {[%emt 0:00:06]} 5. Nf3 {[%emt 0:01:25]} Nc6 {[%emt 0:00:05]} 6. g3 {[%emt 0:00:10]} Nf6 {[%emt 0:00:07]} 7. Bg2 {[%emt 0:00:14]} Be7 {[%emt 0:00:12]} 8. O-O {[%emt 0:00:21]} O-O 9. dxc5 Bxc5 {[%emt 0:00:52]} 10. Na4 {[%emt 0:02:57]} Be7 {[%emt 0:04:41]} 11. Be3 {[%emt 0:01:04]} Ne4 {[%emt 0:03:58]} 12. Rc1 {[%emt 0:01:06]} Bf6 {[%emt 0:04:30]} 13. a3 {[%emt 0:21:42]} Re8 {[%emt 0:02:49]} 14. h3 {[%emt 0:11:33]} Nxg3 {[%emt 0:03:16]} 15. fxg3 {[%emt 0:03:21]} Rxe3 {[%emt 0:00:09]} 16. Nc3 {[%emt 0:03:18]} d4 {[%emt 0:06:10]} 17. Na4 {[%emt 0:01:54]} Qd6 {[%emt 0:16:14]} 18. g4 {[%emt 0:12:47]} h6 {[%emt 0:07:58]} 19. Nc5 {[%emt 0:01:50]} Qe7 {[%emt 0:16:32]} 20. Rf2 {[%emt 0:10:03]} Be6 {[%emt 0:06:25]} 21. Qa4 {[%emt 0:06:54]} Bd5 {[%emt 0:03:12]} 22. Qb5 {[%emt 0:06:08]} Bxf3 {[%emt 0:04:41]} 23. Bxf3 {[%emt 0:01:51]} Bh4 {[%emt 0:07:37]} 24. Nd3 {[%emt 0:07:50]} Bxf2+ {[%emt 0:01:03]} 25. Kxf2 {[%emt 0:00:22]} Re8 {[%emt 0:01:50]} 26. Nf4 {[%emt 0:01:23]} Rxf3+ {[%emt 0:00:19]} 0-1

[Event "V Copa Marcel Duchamp 2022"]
[Site "Montevideo"]
[Date "2022.02.15"]
[Round "5.33"]
[White "Durante, Aurelio"]
[Black "Amaral, Francisco"]
[Result "1/2-1/2"]
[ECO "C42"]
[WhiteElo "1944"]
[BlackElo "1672"]
[Annotator "NA"]
[PlyCount "86"]
[EventDate "2022.02.12"]
[EventCountry "URU"]
[SourceTitle "playchess.com"]
[Source "ChessBase"]
[SourceQuality "1"]
[TimeControl "5400+30"]

1. e4 {[%emt 0:00:32]} e5 {[%emt 0:00:49]} 2. Nf3 {[%emt 0:00:26]} Nf6 {[%emt 0:00:42]} 3. Nxe5 {[%emt 0:01:33]} d6 {[%emt 0:00:10]} 4. Nf3 {[%emt 0:00:41]} Nxe4 {[%emt 0:00:08]} 5. Nc3 {[%emt 0:00:09]} Nxc3 {[%emt 0:01:01]} 6. dxc3 {[%emt 0:00:03]} Be7 {[%emt 0:00:12]} 7. Bd3 {[%emt 0:00:47]} Nd7 {[%emt 0:05:33]} 8. Bf4 {[%emt 0:01:58]} Nf6 {[%emt 0:00:42]} 9. Qd2 {[%emt 0:01:13]} Bg4 {[%emt 0:02:31]} 10. O-O-O {[%emt 0:02:17]} Qd7 {[%emt 0:08:02]} 11. Kb1 {[%emt 0:01:04]} O-O {[%emt 0:03:10]} 12. Rde1 {[%emt 0:00:36]} Rfe8 {[%emt 0:00:55]} 13. Nd4 {[%emt 0:00:58]} a6 {[%emt 0:05:11]} 14. f3 {[%emt 0:00:46]} c5 {[%emt 0:01:37]} 15. Ne2 {[%emt 0:02:23]} Bf5 {[%emt 0:01:40]} 16. Bxf5 {[%emt 0:01:46]} Qxf5 {[%emt 0:00:05]} 17. g4 {[%emt 0:00:18]} Qd7 {[%emt 0:00:29]} 18. Ng3 {[%emt 0:00:46]} Bf8 {[%emt 0:03:06]} 19. h4 {[%emt 0:02:17]} Rxe1+ {[%emt 0:02:55]} 20. Rxe1 {[%emt 0:00:14]} d5 {[%emt 0:01:48]} 21. Bg5 {[%emt 0:09:05]} Ne8 {[%emt 0:00:42]} 22. Nf5 {[%emt 0:01:19]} f6 {[%emt 0:03:00]} 23. Bf4 {[%emt 0:02:52]} Rd8 {[%emt 0:00:44]} 24. Qe2 {[%emt 0:08:10]} Nc7 {[%emt 0:04:51]} 25. Ne7+ {[%emt 0:10:17]} Kf7 {[%emt 0:16:04]} 26. Bxc7 {[%emt 0:14:56]} Re8 {[%emt 0:00:09]} 27. Qd3 {[%emt 0:09:23]} Rxe7 {[%emt 0:01:34]} 28. Rxe7+ {[%emt 0:01:21]} Bxe7 {[%emt 0:00:11]} 29. Bf4 {[%emt 0:00:21]} g6 {[%emt 0:01:20]} 30. c4 {[%emt 0:01:36]} d4 {[%emt 0:02:11]} 31. h5 {[%emt 0:01:04]} f5 {[%emt 0:03:30]} 32. b3 {[%emt 0:05:39]} Bg5 {[%emt 0:08:19]} 33. Be5 {[%emt 0:02:29]} Bf6 {[%emt 0:03:09]} 34. Bg3 {[%emt 0:02:22]} fxg4 {[%emt 0:10:21]} 35. Qxg6+ {[%emt 0:00:10]} Ke7 {[%emt 0:00:13]} 36. Qe4+ {[%emt 0:02:11]} Kf7 {[%emt 0:00:45]} 37. fxg4 {[%emt 0:00:08]} Qe7 {[%emt 0:00:36]} 38. Qd5+ {[%emt 0:01:41]} Ke8 {[%emt 0:00:32]} 39. Qg8+ {[%emt 0:01:45]} Kd7 {[%emt 0:01:30]} 40. Qd5+ {[%emt 0:00:50]} Ke8 {[%emt 0:01:06]} 41. Qg8+ {[%emt 0:06:23]} Kd7 {[%emt 0:00:21]} 42. Qb8 Ke6 43. Qc8+ {[%emt 0:03:41]} Kf7 1/2-1/2

[Event "V Copa Marcel Duchamp 2022"]
[Site "Montevideo"]
[Date "2022.02.15"]
[Round "5.34"]
[White "Rodriguez Farias, Eduardo"]
[Black "Areeb, Jazy"]
[Result "1-0"]
[ECO "B93"]
[WhiteElo "1931"]
[BlackElo "1665"]
[Annotator "NA"]
[PlyCount "57"]
[EventDate "2022.02.12"]
[EventCountry "URU"]
[SourceTitle "playchess.com"]
[Source "ChessBase"]
[SourceQuality "1"]
[TimeControl "5400+30"]

1. e4 {[%emt 0:00:05]} c5 {[%emt 0:00:09]} 2. Nf3 {[%emt 0:00:03]} d6 {[%emt 0:00:09]} 3. d4 {[%emt 0:00:17]} cxd4 {[%emt 0:00:12]} 4. Nxd4 {[%emt 0:00:09]} Nf6 {[%emt 0:00:19]} 5. Nc3 {[%emt 0:00:07]} a6 {[%emt 0:00:14]} 6. f4 {[%emt 0:02:00]} e5 {[%emt 0:07:12]} 7. Nf3 {[%emt 0:01:03]} Qc7 {[%emt 0:02:32]} 8. f5 {[%emt 0:05:29]} b5 {[%emt 0:01:55]} 9. Bg5 {[%emt 0:02:22]} Nbd7 {[%emt 0:00:24]} 10. Bd3 {[%emt 0:03:11]} Be7 {[%emt 0:01:30]} 11. Qe2 {[%emt 0:00:57]} Bb7 {[%emt 0:01:17]} 12. g4 {[%emt 0:01:41]} Nxg4 {[%emt 0:05:38]} 13. Bxe7 {[%emt 0:00:26]} Kxe7 {[%emt 0:00:15]} 14. Rg1 {[%emt 0:01:24]} Ndf6 {[%emt 0:01:43]} 15. h3 {[%emt 0:03:03]} Nh6 {[%emt 0:00:24]} 16. Rxg7 {[%emt 0:01:41]} Nh5 {[%emt 0:01:10]} 17. Qg2 {[%emt 0:05:58]} Kf8 {[%emt 0:05:34]} 18. f6 {[%emt 0:19:57]} Nxf6 {[%emt 0:13:30]} 19. O-O-O {[%emt 0:08:37]} Rg8 {[%emt 0:23:51]} 20. Rxg8+ {[%emt 0:03:41]} Nfxg8 {[%emt 0:02:08]} 21. Rg1 {[%emt 0:00:30]} f6 {[%emt 0:00:44]} 22. Nd5 {[%emt 0:09:19]} Bxd5 {[%emt 0:02:19]} 23. exd5 {[%emt 0:00:01]} Qf7 {[%emt 0:02:03]} 24. Be4 {[%emt 0:12:16]} Ke7 {[%emt 0:07:55]} 25. Qd2 {[%emt 0:03:13]} a5 {[%emt 0:06:09]} 26. Qe3 {[%emt 0:02:42]} f5 {[%emt 0:03:33]} 27. Ng5 {[%emt 0:00:17]} f4 {[%emt 0:02:26]} 28. Qb6 {[%emt 0:00:31]} Qf8 {[%emt 0:00:15]} 29. Qb7+ {[%emt 0:00:45]} 1-0

[Event "V Copa Marcel Duchamp 2022"]
[Site "Montevideo"]
[Date "2022.02.15"]
[Round "5.35"]
[White "Estoyanoff, German"]
[Black "Moccero, Eduardo"]
[Result "0-1"]
[ECO "B00"]
[WhiteElo "1650"]
[BlackElo "1919"]
[Annotator "NA"]
[PlyCount "84"]
[EventDate "2022.02.12"]
[EventCountry "URU"]
[SourceTitle "playchess.com"]
[Source "ChessBase"]
[SourceQuality "1"]
[TimeControl "5400+30"]

1. e4 Nc6 2. Nf3 g6 3. c3 d6 4. d4 Bg7 5. Bb5 {[%emt 0:19:14]} Bd7 {[%emt 0:02:45]} 6. Qb3 Nf6 {[%emt 0:04:46]} 7. Ng5 {[%emt 0:13:17]} O-O {[%emt 0:03:55]} 8. Bc4 {[%emt 0:10:02]} e6 {[%emt 0:07:00]} 9. Bd3 {[%emt 0:00:30]} Na5 {[%emt 0:00:30]} 10. Qb4 {[%emt 0:27:00]} b6 {[%emt 0:00:17]} 11. O-O {[%emt 0:00:30]} c5 {[%emt 0:07:58]} 12. Qa3 {[%emt 0:07:03]} Bc6 {[%emt 0:00:30]} 13. Re1 {[%emt 0:00:30]} Bb7 {[%emt 0:04:29]} 14. Nf3 {[%emt 0:01:42]} Qd7 {[%emt 0:00:30]} 15. e5 {[%emt 0:00:30]} Bxf3 {[%emt 0:01:36]} 16. exf6 {[%emt 0:01:18]} Bxf6 {[%emt 0:00:30]} 17. gxf3 {[%emt 0:00:30]} cxd4 {[%emt 0:00:28]} 18. cxd4 {[%emt 0:03:37]} Bxd4 {[%emt 0:00:30]} 19. Bd2 {[%emt 0:03:26]} Qe7 {[%emt 0:04:41]} 20. Re4 {[%emt 0:01:31]} Bg7 {[%emt 0:02:12]} 21. Nc3 {[%emt 0:02:46]} Rfd8 {[%emt 0:01:23]} 22. Nb5 {[%emt 0:00:52]} Qd7 {[%emt 0:02:13]} 23. Rh4 {[%emt 0:02:00]} d5 {[%emt 0:01:46]} 24. Bc3 {[%emt 0:02:38]} Bf8 {[%emt 0:02:45]} 25. Qa4 {[%emt 0:00:30]} Be7 {[%emt 0:00:30]} 26. Qd4 {[%emt 0:00:30]} f6 {[%emt 0:00:30]} 27. Qf4 {[%emt 0:00:30]} e5 {[%emt 0:03:30]} 28. Qg3 {[%emt 0:03:04]} Bf8 {[%emt 0:01:21]} 29. Bd2 {[%emt 0:00:50]} e4 {[%emt 0:04:01]} 30. Be2 {[%emt 0:00:38]} Nc4 {[%emt 0:01:04]} 31. Bxc4 {[%emt 0:00:30]} dxc4 {[%emt 0:00:12]} 32. Bc3 {[%emt 0:00:00]} Qxb5 {[%emt 0:00:55]} 33. Bxf6 {[%emt 0:00:28]} Rd3 {[%emt 0:02:29]} 34. Qc7 {[%emt 0:00:22]} Rd7 {[%emt 0:00:30]} 35. Qe5 {[%emt 0:00:13]} Qxe5 {[%emt 0:00:52]} 36. Bxe5 {[%emt 0:00:30]} exf3 {[%emt 0:00:26]} 37. Rxc4 {[%emt 0:00:20]} Rad8 {[%emt 0:01:51]} 38. Re1 {[%emt 0:00:40]} Bc5 {[%emt 0:00:48]} 39. Rf4 {[%emt 0:00:36]} Rd1 40. Kf1 {[%emt 0:00:32]} Rxe1+ {[%emt 0:03:56]} 41. Kxe1 {[%emt 0:00:12]} Re8 {[%emt 0:00:00]} 42. Re4 Bd6 0-1

[Event "V Copa Marcel Duchamp 2022"]
[Site "Montevideo"]
[Date "2022.02.15"]
[Round "5.36"]
[White "Montiel Caceres, Helen"]
[Black "Pinero, Ismael"]
[Result "1-0"]
[ECO "E71"]
[WhiteElo "1625"]
[BlackElo "1906"]
[Annotator "ChessBase"]
[PlyCount "109"]
[EventDate "2022.02.12"]
[EventCountry "URU"]
[SourceTitle "playchess.com"]
[Source "ChessBase"]
[SourceQuality "1"]
[TimeControl "5400+30"]

1. d4 Nf6 {[%emt 0:00:25]} 2. c4 {[%emt 0:00:05]} g6 {[%emt 0:00:13]} 3. Nc3 {[%emt 0:00:03]} Bg7 {[%emt 0:00:07]} 4. e4 {[%emt 0:00:02]} d6 {[%emt 0:00:12]} 5. h3 {[%emt 0:00:01]} O-O {[%emt 0:00:05]} 6. Be3 {[%emt 0:00:01]} e5 {[%emt 0:00:23]} 7. d5 {[%emt 0:00:02]} Nh5 {[%emt 0:00:04]} 8. g3 {[%emt 0:00:04]} Na6 {[%emt 0:01:58]} 9. Be2 {[%emt 0:00:14]} Nf6 {[%emt 0:01:11]} 10. g4 {[%emt 0:01:44]} Bd7 {[%emt 0:01:00]} 11. Qd2 {[%emt 0:00:27]} Nc5 {[%emt 0:03:45]} 12. f3 {[%emt 0:00:04]} a5 {[%emt 0:00:07]} 13. h4 {[%emt 0:00:57]} b6 {[%emt 0:06:02]} 14. h5 {[%emt 0:02:43]} a4 {[%emt 0:03:26]} 15. h6 {[%emt 0:00:16]} Bh8 16. Nh3 {[%emt 0:08:07]} a3 {[%emt 0:07:05]} 17. b3 {[%emt 0:17:36]} Ne8 {[%emt 0:27:29]} 18. Rg1 {[%emt 0:00:30]} f6 {[%emt 0:07:30]} 19. Nf2 {[%emt 0:04:16]} Qe7 {[%emt 0:06:24]} 20. Nd3 {[%emt 0:08:07]} Kf7 21. b4 {[%emt 0:00:06]} Nxd3+ {[%emt 0:02:15]} 22. Bxd3 {[%emt 0:23:29]} Rg8 {[%emt 0:05:12]} 23. Rb1 {[%emt 0:03:58]} f5 24. g5 Qd8 {[%emt 0:05:22]} 25. c5 {[%emt 0:01:34]} bxc5 {[%emt 0:00:38]} 26. bxc5 {[%emt 0:00:05]} dxc5 {[%emt 0:00:08]} 27. Bxc5 {[%emt 0:00:12]} Nd6 {[%emt 0:00:24]} 28. Ke2 {[%emt 0:02:36]} Qc8 {[%emt 0:01:07]} 29. Rgc1 {[%emt 0:02:05]} fxe4 {[%emt 0:04:44]} 30. Nxe4 {[%emt 0:00:25]} Nxe4 {[%emt 0:01:00]} 31. Bxe4 {[%emt 0:00:37]} Bf5 {[%emt 0:00:20]} 32. Qe3 {[%emt 0:06:14]} Qa6+ {[%emt 0:01:02]} 33. Kf2 {[%emt 0:00:26]} Rgd8 {[%emt 0:01:11]} 34. Qb3 {[%emt 0:02:45]} Rdb8 {[%emt 0:00:50]} 35. Bb4 {[%emt 0:00:28]} Qb6+ {[%emt 0:01:31]} 36. Kg2 {[%emt 0:00:37]} Ke8 {[%emt 0:00:36]} 37. Rc6 {[%emt 0:05:18]} Qd4 {[%emt 0:01:14]} 38. Rc4 {[%emt 0:04:08]} Qb6 {[%emt 0:00:31]} 39. Qc2 {[%emt 0:00:22]} Qe3 {[%emt 0:00:45]} 40. Bd2 {[%emt 0:01:02]} Qe2+ {[%emt 0:00:16]} 41. Kg3 {[%emt 0:00:24]} Rxb1 {[%emt 0:00:11]} 42. Qxb1 {[%emt 0:00:07]} Qxc4 {[%emt 0:02:07]} 43. Bxf5 {[%emt 0:00:03]} gxf5 {[%emt 0:03:16]} 44. Qxf5 {[%emt 0:00:07]} Qa6 {[%emt 0:00:04]} 45. Qxh7 {[%emt 0:00:05]} e4 {[%emt 0:02:57]} 46. Qxh8+ {[%emt 0:00:13]} Kd7 {[%emt 0:00:11]} 47. Qg7+ {[%emt 0:00:06]} Kc8 {[%emt 0:00:01]} 48. h7 {[%emt 0:00:30]} Qf1 {[%emt 0:00:41]} 49. h8=Q+ {[%emt 0:00:00]} Kb7 {[%emt 0:00:02]} 50. Qh5 {[%emt 0:00:33]} Qd1 {[%emt 0:01:59]} 51. Qd4 Ra4 {[%emt 0:01:32]} 52. Qe3 {[%emt 0:01:29]} Ra6 {[%emt 0:00:58]} 53. Qb3+ {[%emt 0:00:17]} Qxb3 {[%emt 0:00:04]} 54. axb3 {[%emt 0:00:05]} a2 {[%emt 0:00:07]} 55. Bc3 {[%emt 0:00:03]} 1-0

[Event "V Copa Marcel Duchamp 2022"]
[Site "Montevideo"]
[Date "2022.02.16"]
[Round "6.8"]
[White "Vitoux, Colomban"]
[Black "Carbone, Diego"]
[Result "1/2-1/2"]
[ECO "A34"]
[WhiteElo "2372"]
[BlackElo "2272"]
[Annotator "ChessBase"]
[PlyCount "73"]
[EventDate "2022.02.12"]
[EventCountry "URU"]
[SourceTitle "playchess.com"]
[Source "ChessBase"]
[SourceQuality "1"]
[TimeControl "5400+30"]

1. c4 {[%emt 0:05:06]} Nf6 {[%emt 0:00:15]} 2. Nc3 {[%emt 0:00:33]} c5 {[%emt 0:12:16]} 3. g3 {[%emt 0:00:56]} g6 {[%emt 0:00:29]} 4. Bg2 {[%emt 0:00:18]} Bg7 {[%emt 0:00:05]} 5. e4 {[%emt 0:00:59]} Nc6 {[%emt 0:01:21]} 6. Nge2 {[%emt 0:00:07]} d6 {[%emt 0:00:09]} 7. O-O {[%emt 0:00:33]} O-O {[%emt 0:00:05]} 8. d4 {[%emt 0:01:41]} cxd4 {[%emt 0:02:07]} 9. Nxd4 {[%emt 0:00:43]} Nxe4 {[%emt 0:07:39]} 10. Nxc6 {[%emt 0:00:36]} Nxc3 {[%emt 0:00:18]} 11. Nxd8 {[%emt 0:15:05]} Nxd1 {[%emt 0:00:48]} 12. Nxf7 {[%emt 0:40:18]} Nxf2 {[%emt 0:29:55]} 13. Ng5 {[%emt 0:00:42]} Bd4 {[%emt 0:10:16]} 14. Bd5+ {[%emt 0:04:06]} Kg7 {[%emt 0:06:59]} 15. Nf3 {[%emt 0:03:08]} Nh3+ {[%emt 0:00:36]} 16. Kg2 {[%emt 0:00:21]} Bf6 {[%emt 0:00:41]} 17. Be3 {[%emt 0:01:04]} h6 {[%emt 0:02:51]} 18. Nd4 {[%emt 0:02:09]} a6 {[%emt 0:09:06]} 19. Rae1 {[%emt 0:03:33]} Ng5 {[%emt 0:01:16]} 20. Bxg5 {[%emt 0:00:14]} Bxg5 {[%emt 0:02:53]} 21. Rxf8 {[%emt 0:01:35]} Kxf8 {[%emt 0:00:01]} 22. Ne6+ {[%emt 0:00:24]} Bxe6 {[%emt 0:00:09]} 23. Rxe6 {[%emt 0:01:52]} Bf6 {[%emt 0:01:05]} 24. b3 {[%emt 0:04:06]} Rb8 {[%emt 0:00:21]} 25. Kf3 {[%emt 0:01:15]} b5 {[%emt 0:02:21]} 26. c5 {[%emt 0:00:15]} dxc5 {[%emt 0:01:08]} 27. Rxa6 {[%emt 0:00:03]} Rd8 {[%emt 0:08:11]} 28. Ke4 {[%emt 0:03:27]} Kg7 {[%emt 0:00:32]} 29. Rc6 {[%emt 0:01:50]} b4 {[%emt 0:00:33]} 30. Rxc5 {[%emt 0:00:19]} Rb8 {[%emt 0:00:23]} 31. Rc6 {[%emt 0:01:44]} Rb5 {[%emt 0:00:33]} 32. Rc4 {[%emt 0:01:27]} h5 {[%emt 0:00:33]} 33. Bc6 {[%emt 0:01:13]} Ra5 {[%emt 0:00:30]} 34. Ba4 {[%emt 0:00:48]} Re5+ {[%emt 0:00:27]} 35. Kf3 {[%emt 0:00:43]} Rf5+ {[%emt 0:00:16]} 36. Ke2 {[%emt 0:01:26]} Re5+ {[%emt 0:00:19]} 37. Kf3 {[%emt 0:00:29]} 1/2-1/2

[Event "V Copa Marcel Duchamp 2022"]
[Site "Montevideo"]
[Date "2022.02.16"]
[Round "6.13"]
[White "Dotta, Gian Franco"]
[Black "Lujan, Carolina"]
[Result "0-1"]
[ECO "D76"]
[WhiteElo "1991"]
[BlackElo "2334"]
[Annotator "ChessBase"]
[PlyCount "62"]
[EventDate "2022.02.12"]
[EventCountry "URU"]
[SourceTitle "playchess.com"]
[Source "ChessBase"]
[SourceQuality "1"]
[TimeControl "5400+30"]

1. d4 {[%emt 0:03:30]} Nf6 {[%emt 0:01:14]} 2. c4 {[%emt 0:00:06]} g6 {[%emt 0:00:15]} 3. g3 {[%emt 0:00:10]} Bg7 {[%emt 0:00:11]} 4. Bg2 {[%emt 0:00:13]} d5 {[%emt 0:00:31]} 5. cxd5 {[%emt 0:00:42]} Nxd5 {[%emt 0:00:09]} 6. Nf3 {[%emt 0:00:41]} O-O {[%emt 0:01:19]} 7. O-O {[%emt 0:00:15]} Nb6 {[%emt 0:01:49]} 8. Nc3 {[%emt 0:00:41]} Nc6 {[%emt 0:01:37]} 9. e3 {[%emt 0:00:23]} a5 {[%emt 0:01:37]} 10. b3 {[%emt 0:03:00]} Re8 {[%emt 0:17:20]} 11. Bb2 {[%emt 0:02:37]} Bd7 {[%emt 0:05:26]} 12. h3 {[%emt 0:11:45]} Qc8 {[%emt 0:11:33]} 13. Kh2 {[%emt 0:00:08]} a4 {[%emt 0:07:04]} 14. Nxa4 {[%emt 0:12:24]} Nxa4 {[%emt 0:00:06]} 15. bxa4 {[%emt 0:00:08]} Ra5 {[%emt 0:01:56]} 16. Bc3 {[%emt 0:14:40]} Rh5 {[%emt 0:02:58]} 17. h4 {[%emt 0:03:36]} Bg4 {[%emt 0:01:47]} 18. Qb3 {[%emt 0:04:02]} Be6 {[%emt 0:13:58]} 19. Qb2 {[%emt 0:06:38]} Bd5 {[%emt 0:05:02]} 20. Bh3 {[%emt 0:04:34]} Qa8 {[%emt 0:04:24]} 21. Nd2 {[%emt 0:02:42]} e5 {[%emt 0:05:09]} 22. dxe5 {[%emt 0:16:55]} Nxe5 {[%emt 0:03:37]} 23. e4 {[%emt 0:02:10]} Bc4 {[%emt 0:03:36]} 24. Nxc4 {[%emt 0:02:26]} Nxc4 {[%emt 0:00:13]} 25. Qb4 {[%emt 0:00:54]} Bxc3 {[%emt 0:01:38]} 26. Qxc3 {[%emt 0:00:02]} Qxa4 {[%emt 0:01:16]} 27. Rfd1 {[%emt 0:03:08]} Nd6 {[%emt 0:05:45]} 28. Qxc7 {[%emt 0:01:44]} Nxe4 {[%emt 0:00:25]} 29. Bd7 {[%emt 0:00:30]} Qa7 {[%emt 0:00:17]} 30. Bxe8 {[%emt 0:04:10]} Qxf2+ {[%emt 0:00:20]} 31. Kh3 {[%emt 0:00:05]} Ng5+ {[%emt 0:00:22]} 0-1

[Event "V Copa Marcel Duchamp 2022"]
[Site "Montevideo"]
[Date "2022.02.16"]
[Round "6.19"]
[White "Manteiga, Franco"]
[Black "Carvalho, Guillermo"]
[Result "0-1"]
[ECO "D32"]
[WhiteElo "1915"]
[BlackElo "2171"]
[Annotator "ChessBase"]
[PlyCount "58"]
[EventDate "2022.02.12"]
[EventCountry "URU"]
[SourceTitle "playchess.com"]
[Source "ChessBase"]
[SourceQuality "1"]
[TimeControl "5400+30"]

1. d4 {[%emt 0:00:10]} d5 {[%emt 0:00:08]} 2. c4 {[%emt 0:00:11]} e6 {[%emt 0:00:09]} 3. Nc3 {[%emt 0:00:18]} c5 {[%emt 0:00:07]} 4. cxd5 {[%emt 0:00:50]} exd5 {[%emt 0:00:23]} 5. Nf3 {[%emt 0:00:30]} Nc6 {[%emt 0:00:05]} 6. dxc5 {[%emt 0:00:10]} d4 {[%emt 0:01:39]} 7. Na4 {[%emt 0:00:06]} Bxc5 {[%emt 0:00:06]} 8. Nxc5 {[%emt 0:00:10]} Qa5+ {[%emt 0:00:03]} 9. Bd2 {[%emt 0:00:11]} Qxc5 {[%emt 0:00:05]} 10. b4 {[%emt 0:00:59]} Qb6 {[%emt 0:03:49]} 11. Rc1 {[%emt 0:25:05]} Nf6 {[%emt 0:06:24]} 12. Qa4 {[%emt 0:07:51]} O-O {[%emt 0:10:03]} 13. b5 {[%emt 0:00:25]} Ne7 {[%emt 0:00:10]} 14. Ba5 {[%emt 0:03:31]} Qd6 {[%emt 0:06:33]} 15. Qxd4 {[%emt 0:01:47]} Qa3 {[%emt 0:02:24]} 16. Qd2 {[%emt 0:22:19]} Ned5 {[%emt 0:08:48]} 17. Rc4 {[%emt 0:01:07]} b6 {[%emt 0:02:40]} 18. Bc3 {[%emt 0:12:56]} Nxc3 {[%emt 0:00:43]} 19. Rxc3 {[%emt 0:00:22]} Qa4 {[%emt 0:00:34]} 20. Qc2 {[%emt 0:02:04]} Qa5 {[%emt 0:02:57]} 21. Nd2 {[%emt 0:00:28]} Bf5 {[%emt 0:05:57]} 22. Qb2 {[%emt 0:06:42]} Rac8 {[%emt 0:09:48]} 23. Rxc8 {[%emt 0:00:22]} Rxc8 {[%emt 0:00:07]} 24. f3 {[%emt 0:00:10]} Rd8 {[%emt 0:00:21]} 25. e3 {[%emt 0:02:02]} Be6 {[%emt 0:02:10]} 26. h4 {[%emt 0:02:02]} h5 {[%emt 0:00:55]} 27. g3 {[%emt 0:00:54]} Nd5 {[%emt 0:04:42]} 28. Kf2 {[%emt 0:00:33]} Nc3 {[%emt 0:01:07]} 29. Ke1 {[%emt 0:04:55]} Nb1 {[%emt 0:00:33]} 0-1